bitfinex/quotes_SOLUSD_20250817
["timestamp","ask_amount","ask_price","bid_price","bid_amount"]
[1755415602008,62.82989605,192.17,192.16,0.03]
[1755415603098,68.03362191,192.17,192.16,0.03]
[1755415605209,68.02924843,192.17,192.16,0.03]
[1755415605830,68.02706904,192.17,192.16,0.03]
[1755415606130,68.02706904,192.17,192.16,1e-08]
[1755415607739,68.02706904,192.17,192.14,1e-08]
[1755415607740,15.10621557,192.16,192.14,1e-08]
[1755415607945,88.16334318,192.15,192.14,1e-08]
[1755415608438,62.86334318,192.15,192.14,1e-08]
[1755415608936,70.15393167,192.15,192.14,1e-08]
[1755415610838,149.80621557,192.14,192.13,1e-08]
[1755415611154,149.80621557,192.13,192.12,1e-08]
[1755415611351,62.86334318,192.13,192.12,1e-08]
[1755415611727,66.26756018,192.13,192.12,1e-08]
[1755415611915,29.96756018,192.13,192.12,1e-08]
[1755415612123,66.26756018,192.13,192.12,1e-08]
[1755415613137,71.47236942,192.13,192.12,1e-08]
[1755415614339,35.15972441,192.13,192.12,1e-08]
[1755415614541,49.71524181,192.13,192.12,0.72000001]
[1755415614728,63.43945802,192.13,192.12,0.72000001]
[1755415615246,89.43945802,192.13,192.12,1e-08]
[1755415615542,90.13945802,192.13,192.12,1e-08]
[1755415620241,97.45250309,192.13,192.12,1e-08]
[1755415621247,97.45350236,192.13,192.12,1e-08]
[1755415622355,93.60358361,192.13,192.12,1e-08]
[1755415622563,97.45462418,192.13,192.12,1e-08]
[1755415622752,71.45462418,192.13,192.12,1e-08]
[1755415623133,71.45421867,192.13,192.12,1e-08]
[1755415624156,71.45421867,192.13,192.08,0.03]
[1755415624157,41.10621557,192.09,192.08,0.03]
[1755415624357,80.83043178,192.09,192.08,0.03]
[1755415624563,81.53043178,192.09,192.08,0.03]
[1755415624864,81.53043178,192.09,192.06,0.03]
[1755415624865,15.10621557,192.08,192.06,0.03]
[1755415625054,58.68247072,192.07,192.06,1e-08]
[1755415625240,62.85025352,192.07,192.06,1e-08]
[1755415625557,66.25446952,192.07,192.06,1e-08]
[1755415625776,41.10621557,192.03,191.99,0.72]
[1755415626065,3.40421621,192.0,191.99,0.72]
[1755415626235,39.76421621,192.0,191.99,0.72]
[1755415626739,44.97254954,192.0,191.99,0.72]
[1755415627150,15.10621557,191.99,191.93,3.40421621]
[1755415627355,15.10621557,191.97,191.95,0.03]
[1755415627555,36.36,191.96,191.95,0.03]
[1755415628458,36.36,191.96,191.95,0.75]
[1755415638686,36.34,191.98,191.95,4.15421621]
[1755415638848,36.34,191.98,191.97,3.40421621]
[1755415639177,36.34,191.98,191.97,4.11421621]
[1755415639875,36.34,191.98,191.95,0.74]
[1755415640078,36.34,191.98,191.95,4.14421621]
[1755415640372,36.34,191.98,191.96,0.71]
[1755415643085,36.34,191.98,191.96,3.40421621]
[1755415643679,36.34,191.98,191.97,3.40421621]
[1755415644164,36.34,191.98,191.96,3.40421621]
[1755415645386,36.34,191.98,191.95,3.40421621]
[1755415645589,37.04,191.98,191.95,3.40421621]
[1755415645793,37.04,191.98,191.94,3.40421621]
[1755415645794,0.7,191.97,191.94,3.40421621]
[1755415645980,36.34,191.96,191.94,3.40421621]
[1755415646171,37.04,191.96,191.94,3.40421621]
[1755415648196,37.04,191.96,191.93,3.40421621]
[1755415649601,37.04,191.96,191.92,0.32]
[1755415649768,37.04,191.96,191.93,3.40421621]
[1755415651217,36.34,191.96,191.94,3.40421621]
[1755415651499,36.34,191.96,191.95,3.72421621]
[1755415651876,36.34,191.96,191.95,3.40421621]
[1755415654390,0.7,192.01,191.96,5.20941862]
[1755415654700,36.34,192.0,191.98,3.40421621]
[1755415655209,0.7,191.99,191.97,3.40421621]
[1755415655369,36.34,191.98,191.97,3.40421621]
[1755415656395,37.04,191.98,191.97,3.40421621]
[1755415656574,36.34,191.98,191.97,3.40421621]
[1755415657300,36.4,191.98,191.97,3.40421621]
[1755415665909,36.4,191.98,191.97,8.61336347]
[1755415667294,36.4,191.98,191.97,3.40421621]
[1755415667688,0.06,191.98,191.97,3.40421621]
[1755415669279,0.06,191.98,191.97,8.61336347]
[1755415671895,0.06,191.98,191.97,8.93336347]
[1755415673607,0.06,192.02,191.97,21.95623162]
[1755415673910,0.06,192.02,192.01,3.40421621]
[1755415674808,0.06,192.02,191.93,80.7]
[1755415674809,15.10621557,192.01,191.93,3.40421621]
[1755415675110,3.40421621,191.98,191.93,3.40421621]
[1755415675290,0.72,191.97,191.92,3.40421621]
[1755415675904,0.72,191.97,191.93,3.40421621]
[1755415676084,0.72,191.97,191.91,5.24071202]
[1755415676085,0.72,191.97,191.94,3.40421621]
[1755415676780,15.10621557,191.99,191.94,3.40421621]
[1755415676981,0.72,191.96,191.94,3.40421621]
[1755415677491,0.72,191.96,191.95,3.40421621]
[1755415677998,0.72,191.96,191.94,3.40421621]
[1755415678686,0.72,191.95,191.94,3.40421621]
[1755415680292,0.72,192.01,191.94,34.93416281]
[1755415680613,5.990475,192.04,192.0,6.80843242]
[1755415680814,5.270475,192.04,192.01,3.40421621]
[1755415681111,0.06,192.04,192.01,3.72421621]
[1755415681620,0.06,192.04,192.01,8.61227829]
[1755415682903,0.06,192.04,192.01,8.93227829]
[1755415684492,0.06,192.04,192.01,8.61227829]
[1755415685008,0.78,192.04,192.01,8.61227829]
[1755415686097,0.78,192.02,192.01,8.61227829]
[1755415687812,0.78,192.02,192.01,3.40421621]
[1755415693918,0.06,192.02,192.01,3.40421621]
[1755415694299,0.78,192.02,192.01,3.40421621]
[1755415699525,0.78,192.02,192.0,3.40421621]
[1755415699710,3.40421621,192.01,191.96,3.40421621]
[1755415699908,3.40421621,191.99,191.94,0.03]
[1755415700123,15.80621557,191.98,191.94,0.03]
[1755415700307,15.80621557,191.98,191.94,3.43421621]
[1755415700498,0.7,191.97,191.94,3.43421621]
[1755415701025,0.7,191.99,191.96,3.40421621]
[1755415701331,36.36,192.0,191.98,3.40421621]
[1755415701530,36.36,192.0,191.99,3.40421621]
[1755415701735,37.06,192.0,191.99,3.40421621]
[1755415703427,15.86621557,192.02,191.99,3.40421621]
[1755415703612,15.86621557,192.02,191.97,5.20911624]
[1755415703613,36.36,192.0,191.97,5.20911624]
[1755415703817,36.36,192.0,191.99,3.40421621]
[1755415704440,0.7,192.0,191.99,3.40421621]
[1755415704646,37.06,192.0,191.94,0.03]
[1755415704945,37.06,192.0,191.99,3.40421621]
[1755415706629,37.06,192.0,191.97,3.40421621]
[1755415706806,0.7,191.99,191.97,3.40421621]
[1755415708722,0.7,191.98,191.97,3.40421621]
[1755415709812,0.06,192.02,191.97,3.72421621]
[1755415710016,0.06,192.02,192.01,3.40421621]
[1755415710439,0.76,192.02,192.01,3.40421621]
[1755415710632,0.06,192.02,192.01,3.40421621]
[1755415710833,0.76,192.02,192.01,3.40421621]
[1755415713818,0.76,192.02,192.0,3.40421621]
[1755415714322,0.7,192.01,192.0,3.40421621]
[1755415715056,0.06,192.02,192.0,3.40421621]
[1755415715225,0.06,192.02,191.98,31.2088452]
[1755415715226,0.76,192.02,192.01,3.40421621]
[1755415721954,0.06,192.02,192.01,3.40421621]
[1755415725150,36.38,192.02,192.01,3.40421621]
[1755415725666,0.06,192.02,192.01,3.40421621]
[1755415725851,36.38,192.02,192.01,3.40421621]
[1755415726870,36.38,192.02,192.0,5.20831709]
[1755415727169,36.38,192.02,192.01,3.40421621]
[1755415728546,36.38,192.02,191.99,5.20860461]
[1755415728770,36.38,192.02,192.01,3.40421621]
[1755415729076,37.1,192.02,192.01,3.40421621]
[1755415738651,44.46377551,192.02,191.98,0.03]
[1755415738851,7.36377551,192.01,191.99,3.40421621]
[1755415739051,0.72,192.0,191.99,3.40421621]
[1755415739350,0.72,192.0,191.98,0.03]
[1755415739351,8.0830249,192.0,191.98,0.03]
[1755415739550,43.68269311,191.99,191.98,0.03]
[1755415739767,44.40269311,191.99,191.98,0.03]
[1755415740253,40.91509169,191.99,191.98,0.03]
[1755415740582,40.91525054,191.99,191.98,0.03]
[1755415740756,37.04,191.99,191.98,3.43421621]
[1755415741363,0.78,192.02,191.98,3.43421621]
[1755415741660,37.04,192.01,191.98,0.03]
[1755415742251,0.72,192.0,191.98,0.03]
[1755415742754,36.32,192.01,191.98,3.43421621]
[1755415742980,41.52814897,192.01,191.98,3.43421621]
[1755415743388,0.72,192.0,191.98,3.43421621]
[1755415743755,0.72,192.0,191.98,0.03]
[1755415743756,7.36342805,191.99,191.98,0.03]
[1755415744480,8.08342805,191.99,191.98,0.03]
[1755415744784,13.29203266,191.99,191.98,0.03]
[1755415745370,8.08342805,191.99,191.98,0.03]
[1755415745563,23.18992383,191.99,191.98,0.03]
[1755415745770,28.39852844,191.99,191.98,0.03]
[1755415746588,23.18992383,191.99,191.98,0.03]
[1755415747286,59.50992383,191.99,191.98,0.03]
[1755415747974,64.71852844,191.99,191.98,0.03]
[1755415748771,64.71666909,191.99,191.98,0.03]
[1755415748965,7.36184891,191.99,191.98,3.43421621]
[1755415749167,0.06,192.02,191.98,3.75421621]
[1755415749372,36.32,192.01,191.98,0.35]
[1755415749690,36.32,192.01,192.0,3.40421621]
[1755415753782,36.32,192.01,191.99,3.40421621]
[1755415755693,36.38,192.01,191.99,3.40421621]
[1755415755989,37.07,192.01,191.99,3.40421621]
[1755415756189,37.07,192.01,192.0,3.40421621]
[1755415759895,37.09,192.01,191.98,5.23874474]
[1755415760074,37.09,192.01,192.0,3.40421621]
[1755415762898,36.4,192.01,192.0,3.40421621]
[1755415763701,0.06,192.01,192.0,8.61254954]
[1755415769002,0.06,192.01,191.96,0.03]
[1755415769003,26.62276275,192.01,191.96,0.03]
[1755415769186,3.40421621,191.97,191.96,0.03]
[1755415769389,43.74233097,191.97,191.96,0.03]
[1755415769585,44.43233097,191.97,191.96,0.03]
[1755415770177,8.05233097,191.97,191.96,0.03]
[1755415770687,36.38,191.97,191.96,3.43421621]
[1755415772021,37.07,191.97,191.96,3.43421621]
[1755415772388,0.69,191.97,191.96,3.43421621]
[1755415772598,37.09,191.97,191.96,3.43421621]
[1755415773591,0.69,191.97,191.96,3.43421621]
[1755415774300,0.69,191.97,191.96,0.03]
[1755415774605,0.69,191.97,191.96,3.43421621]
[1755415781506,36.4,191.98,191.96,3.43421621]
[1755415781819,52.19621557,191.98,191.97,3.40421621]
[1755415781989,51.50621557,191.98,191.97,3.40421621]
[1755415782814,52.19621557,191.98,191.97,3.40421621]
[1755415784494,36.36,191.98,191.97,3.40421621]
[1755415785921,0.71,191.99,191.97,3.40421621]
[1755415786113,36.36,191.98,191.96,0.03]
[1755415786305,36.36,191.98,191.97,3.40421621]
[1755415787732,37.07,191.98,191.97,3.40421621]
[1755415789235,37.13,191.98,191.97,3.40421621]
[1755415790617,37.11,191.98,191.97,3.40421621]
[1755415790826,0.77,191.98,191.97,3.40421621]
[1755415791001,37.11,191.98,191.97,3.40421621]
[1755415791938,37.11,191.98,191.96,3.43421621]
[1755415792121,0.71,191.97,191.96,3.43421621]
[1755415792925,37.05,191.97,191.96,3.43421621]
[1755415795729,36.34,191.97,191.96,3.43421621]
[1755415795910,0.71,191.97,191.96,3.43421621]
[1755415796625,37.05,191.97,191.96,3.43421621]
[1755415798131,0.71,191.97,191.96,3.43421621]
[1755415800530,36.4,191.98,191.96,3.78421621]
[1755415800700,37.11,191.98,191.97,3.40421621]
[1755415806135,36.4,191.98,191.97,3.40421621]
[1755415806305,36.4,191.98,191.97,8.96336347]
[1755415806306,0.06,191.98,191.97,8.96336347]
[1755415806707,0.06,191.98,191.97,7.77657019]
[1755415808639,0.06,191.98,191.97,9.00700447]
[1755415815337,0.06,192.0,191.99,26.0]
[1755415815637,0.06,192.0,191.99,32.83571442]
[1755415816016,0.06,192.0,191.99,29.76785721]
[1755415816230,0.06,192.0,191.99,33.18571442]
[1755415817049,0.06,192.0,191.99,29.76785721]
[1755415817245,0.06,192.0,191.99,29.41785721]
[1755415817425,0.77,192.0,191.97,0.03]
[1755415817614,0.77,192.0,191.99,29.41785721]
[1755415817814,0.77,192.0,191.99,3.41785721]
[1755415818517,0.77,192.0,191.99,29.41785721]
[1755415819242,0.77,192.0,191.99,3.41785721]
[1755415819409,0.77,192.0,191.99,29.41785721]
[1755415822260,0.77,192.0,191.99,3.41785721]
[1755415826238,0.77,192.0,191.98,0.03]
[1755415827242,0.77,192.0,191.98,3.44785721]
[1755415828840,0.77,192.0,191.98,0.03]
[1755415829420,37.09,192.0,191.98,0.03]
[1755415829658,0.71,191.99,191.98,0.03]
[1755415831250,0.71,191.99,191.98,3.44785721]
[1755415832736,0.71,191.99,191.98,0.03]
[1755415835847,37.03,191.99,191.98,3.44785721]
[1755415838768,37.03,191.99,191.98,2.2186551]
[1755415839263,15.10621557,191.98,191.96,0.03]
[1755415839455,9.53801669,191.97,191.96,0.03]
[1755415839657,15.10621557,191.96,191.95,0.03]
[1755415839853,59.4850005,191.96,191.95,0.03]
[1755415841447,3.4816432,191.96,191.95,3.45211607]
[1755415841649,0.06,192.0,191.95,29.89211607]
[1755415841871,0.06,192.0,191.99,3.42211607]
[1755415842247,0.06,192.0,191.99,3.86211607]
[1755415843746,0.06,192.0,191.99,9.07072068]
[1755415848078,0.06,192.0,191.99,8.63072068]
[1755415849668,0.06,192.0,191.99,9.07072068]
[1755415851856,0.06,192.0,191.99,8.63072068]
[1755415860494,0.06,192.0,191.98,5.20887592]
[1755415860697,0.78,192.0,191.99,26.0]
[1755415860867,0.78,192.0,191.99,3.42211607]
[1755415867096,0.06,192.0,191.99,3.42211607]
[1755415867298,0.06,192.0,191.99,12.49283675]
[1755415867482,0.06,192.02,191.99,13.01369721]
[1755415867681,0.06,192.02,192.01,3.42211607]
[1755415868189,0.72,192.01,191.99,26.0]
[1755415868793,0.72,192.01,191.96,5.20941862]
[1755415869188,0.72,192.01,191.97,26.0]
[1755415869388,0.72,192.01,191.98,3.42211607]
[1755415869699,0.72,192.01,191.99,3.42211607]
[1755415873010,0.72,192.01,191.96,5.20928662]
[1755415873213,0.72,192.01,191.98,3.42211607]
[1755415874301,5.26791096,192.02,191.98,3.42211607]
[1755415874488,0.72,192.0,191.99,3.42211607]
[1755415875180,15.10621557,191.99,191.96,3.45211607]
[1755415875381,37.1,191.98,191.96,0.03]
[1755415875801,0.72,191.97,191.96,0.03]
[1755415876008,15.82621557,191.97,191.96,0.03]
[1755415876181,22.72901525,191.97,191.96,0.03]
[1755415876513,27.93816251,191.97,191.96,0.03]
[1755415877301,24.51604644,191.97,191.96,0.03]
[1755415877908,28.38185953,191.97,191.96,0.03]
[1755415878411,36.42,191.97,191.96,3.45211607]
[1755415879224,37.14,191.97,191.96,0.03]
[1755415882684,0.72,191.97,191.96,0.03]
[1755415883000,37.18,191.97,191.96,0.03]
[1755415884205,0.72,191.97,191.96,0.03]
[1755415884505,37.18,191.97,191.96,0.03]
[1755415887514,37.18,191.97,191.96,3.45211607]
[1755415887919,52.28621557,191.97,191.96,0.03]
[1755415888103,57.49536283,191.97,191.96,0.03]
[1755415888413,52.28621557,191.97,191.96,0.03]
[1755415888918,57.49536283,191.97,191.96,0.03]
[1755415889117,57.47536283,191.97,191.96,0.03]
[1755415889721,21.03536283,191.97,191.96,0.03]
[1755415890020,52.26621557,191.97,191.96,0.03]
[1755415892015,52.26621557,191.97,191.96,3.45211607]
[1755415892016,36.44,191.97,191.96,3.45211607]
[1755415892221,52.26621557,191.97,191.96,0.03]
[1755415895701,60.8974789,191.97,191.96,0.03]
[1755415898428,55.68833164,191.97,191.96,0.03]
[1755415898718,52.26621557,191.97,191.96,0.03]
[1755415903533,55.74760695,191.97,191.96,0.03]
[1755415906422,55.69760695,191.97,191.96,0.03]
[1755415906608,59.56814994,191.97,191.96,0.03]
[1755415906811,55.69760695,191.97,191.96,0.03]
[1755415907634,62.99054107,191.97,191.96,0.03]
[1755415907810,68.19968833,191.97,191.96,0.03]
[1755415909526,94.17968833,191.97,191.96,0.03]
[1755415911009,26.0,191.95,191.94,0.03]
[1755415911214,41.10621557,191.94,191.93,0.03]
[1755415911421,57.76050251,191.94,191.93,0.03]
[1755415911638,62.11333236,191.94,191.93,0.03]
[1755415912230,53.88968446,191.94,191.93,0.03]
[1755415912433,57.75832626,191.94,191.93,0.03]
[1755415912942,18.52833164,191.93,191.92,0.03]
[1755415913139,67.37554928,191.93,191.92,0.03]
[1755415913335,41.10621557,191.92,191.81,0.44]
[1755415913529,52.54604717,191.92,191.81,3.86211607]
[1755415914126,52.54604717,191.92,191.82,0.44]
[1755415914331,63.02604717,191.91,191.82,0.44]
[1755415915045,63.02604717,191.91,191.82,3.86211607]
[1755415915429,68.23282863,191.91,191.82,3.86211607]
[1755415915633,68.23282863,191.91,191.82,0.44]
[1755415915848,68.23282863,191.91,191.82,3.86211607]
[1755415916352,68.23282863,191.91,191.76,16.45908205]
[1755415916353,31.75282863,191.91,191.9,1e-08]
[1755415916565,94.23282863,191.91,191.9,1e-08]
[1755415916851,68.23282863,191.91,191.9,1e-08]
[1755415917420,54.33071256,191.91,191.9,1e-08]
[1755415917658,94.25282863,191.91,191.9,1e-08]
[1755415918829,57.75282863,191.91,191.9,1e-08]
[1755415919032,94.25282863,191.91,191.9,1e-08]
[1755415920658,90.83071256,191.91,191.9,1e-08]
[1755415920862,22.44993668,191.91,191.9,3.86211608]
[1755415921156,5.79722462,191.97,191.9,3.86211608]
[1755415921157,5.93810484,192.01,191.9,3.86211608]
[1755415921442,3.47478737,192.0,191.98,3.42211607]
[1755415921654,36.62,191.99,191.9,1e-08]
[1755415921846,15.10621557,191.98,191.95,3.42211607]
[1755415922021,36.62,191.97,191.95,3.42211607]
[1755415922222,15.10621557,191.98,191.95,3.42211607]
[1755415922453,15.10621557,191.96,191.9,1e-08]
[1755415922773,15.10621557,191.94,191.9,3.42211608]
[1755415922955,15.10621557,191.92,191.9,1e-08]
[1755415923144,51.74621557,191.91,191.9,1e-08]
[1755415923743,15.10621557,191.97,191.9,3.42211608]
[1755415924050,51.76621557,191.96,191.95,3.42211607]
[1755415924552,15.10621557,191.95,191.94,3.42211607]
[1755415925454,51.76621557,191.95,191.94,3.42211607]
[1755415925757,51.76621557,191.95,191.93,3.42211607]
[1755415926338,51.76621557,191.95,191.91,5.21074434]
[1755415926558,51.76621557,191.95,191.93,3.42211607]
[1755415927258,15.10621557,191.95,191.93,3.42211607]
[1755415927443,36.66,191.94,191.93,3.42211607]
[1755415928928,15.10621557,191.93,191.9,1e-08]
[1755415929125,36.64,191.92,191.9,1e-08]
[1755415929356,36.66,191.91,191.9,1e-08]
[1755415930284,0.67,191.92,191.9,1e-08]
[1755415930453,36.66,191.91,191.9,3.42211608]
[1755415931146,36.66,191.91,191.9,1e-08]
[1755415931445,51.76621557,191.91,191.9,3.42211608]
[1755415932062,51.76621557,191.91,191.9,1e-08]
[1755415932864,51.76621557,191.91,191.9,3.42211608]
[1755415934967,51.74621557,191.91,191.9,3.42211608]
[1755415935265,15.10621557,191.91,191.9,3.42211608]
[1755415935566,52.38621557,191.91,191.9,1e-08]
[1755415939960,51.72621557,191.91,191.9,1e-08]
[1755415941159,52.38621557,191.91,191.9,1e-08]
[1755415943475,52.34621557,191.91,191.9,1e-08]
[1755415946769,0.06,191.96,191.9,3.42211608]
[1755415946976,15.10621557,191.94,191.9,1e-08]
[1755415947376,36.56,191.93,191.9,1e-08]
[1755415948258,15.10621557,191.93,191.92,3.42211607]
[1755415948460,51.66621557,191.93,191.92,3.42211607]
[1755415949263,15.76621557,191.93,191.91,3.42211607]
[1755415949471,36.56,191.92,191.91,3.42211607]
[1755415951253,15.10621557,191.94,191.91,3.42211607]
[1755415951456,36.54,191.93,191.9,1e-08]
[1755415951689,36.54,191.93,191.92,3.42211607]
[1755415951889,37.2,191.93,191.92,3.42211607]
[1755415952186,37.2,191.93,191.91,3.42211607]
[1755415952482,36.54,191.92,191.91,3.42211607]
[1755415953276,15.10621557,191.94,191.91,3.42211607]
[1755415953455,37.2,191.93,191.91,3.42211607]
[1755415953663,36.54,191.93,191.91,3.42211607]
[1755415953863,0.66,191.92,191.91,3.42211607]
[1755415954169,0.66,191.92,191.9,1e-08]
[1755415954364,36.52,191.91,191.9,3.42211608]
[1755415956170,37.18,191.91,191.9,1e-08]
[1755415956387,37.18,191.91,191.9,3.42211608]
[1755415956991,37.18,191.91,191.9,1e-08]
[1755415957292,0.66,191.91,191.9,3.42211608]
[1755415957471,37.18,191.91,191.9,3.42211608]
[1755415958791,0.66,191.91,191.9,3.42211608]
[1755415958994,37.18,191.91,191.9,3.42211608]
[1755415959383,0.66,191.91,191.9,3.42211608]
[1755415959695,37.16,191.91,191.9,3.42211608]
[1755415961282,0.66,191.91,191.9,3.42211608]
[1755415961478,37.16,191.91,191.9,3.42211608]
[1755415963382,37.14,191.91,191.9,3.42211608]
[1755415964289,4.15128276,191.91,191.9,3.42211608]
[1755415964595,40.63128276,191.91,191.9,3.42211608]
[1755415965271,4.15128276,191.91,191.9,3.42211608]
[1755415965472,40.63128276,191.91,191.9,3.42211608]
[1755415966888,40.63128276,191.91,191.9,1e-08]
[1755415967078,40.63128276,191.91,191.9,3.42211608]
[1755415967280,4.15128276,191.91,191.9,3.42211608]
[1755415967682,40.61128276,191.91,191.9,3.42211608]
[1755415969098,40.61128276,191.91,191.9,1e-08]
[1755415969271,60.92827421,191.91,191.9,1e-08]
[1755415969985,64.81147673,191.91,191.9,1e-08]
[1755415971304,28.35147673,191.91,191.9,1e-08]
[1755415971469,64.81147673,191.91,191.9,1e-08]
[1755415972293,28.35147673,191.91,191.9,1e-08]
[1755415972496,64.79147673,191.91,191.9,1e-08]
[1755415973269,28.35147673,191.91,191.9,1e-08]
[1755415973502,64.79147673,191.91,191.9,1e-08]
[1755415974318,31.7735928,191.91,191.9,1e-08]
[1755415974609,68.2135928,191.91,191.9,1e-08]
[1755415975680,68.21308005,191.91,191.9,1e-08]
[1755415976012,72.56258216,191.91,191.9,1e-08]
[1755415979823,69.14046609,191.91,191.9,1e-08]
[1755415979993,72.56258216,191.91,191.9,1e-08]
[1755415980189,69.14046609,191.91,191.9,1e-08]
[1755415980876,27.69096398,191.91,191.9,1e-08]
[1755415981076,64.81096398,191.91,191.9,1e-08]
[1755415981298,36.14258216,191.91,191.9,1e-08]
[1755415981512,15.10621557,191.9,191.89,0.03]
[1755415981719,30.94721275,191.9,191.89,0.03]
[1755415981923,28.37123552,191.9,191.89,0.03]
[1755415982486,64.83123552,191.9,191.89,0.03]
[1755415983916,64.82730352,191.9,191.89,0.03]
[1755415984080,64.82716001,191.9,191.89,0.03]
[1755415984898,28.36716001,191.9,191.89,0.03]
[1755415985111,64.80716001,191.9,191.89,0.03]
[1755415986303,28.36716001,191.9,191.89,0.03]
[1755415986516,64.80716001,191.9,191.89,0.03]
[1755415989212,68.22927608,191.9,191.89,0.03]
[1755415989803,68.22676838,191.9,191.89,0.03]
[1755415990012,68.28676838,191.9,191.89,0.03]
[1755415990416,68.26676838,191.9,191.89,0.03]
[1755415990793,64.84465231,191.9,191.89,0.03]
[1755415992907,60.96854575,191.9,191.89,0.03]
[1755415993113,64.84442191,191.9,191.89,0.03]
[1755415993294,28.42442191,191.9,191.89,0.03]
[1755415993499,64.82442191,191.9,191.89,0.03]
[1755415994309,28.42442191,191.9,191.89,0.03]
[1755415994612,64.82442191,191.9,191.89,0.03]
[1755415995425,28.42442191,191.9,191.89,0.03]
[1755415995614,64.82442191,191.9,191.89,0.03]
[1755415996296,28.42442191,191.9,191.89,0.03]
[1755415996492,64.82442191,191.9,191.89,0.03]
[1755415999919,67.01620121,191.9,191.89,0.03]
[1755416000305,71.38110979,191.9,191.89,0.03]
[1755416001319,34.98110979,191.9,191.89,0.03]
[1755416001622,71.40110979,191.9,191.89,0.03]
[1755416002202,67.52523363,191.9,191.88,0.03]
[1755416002394,66.20020032,191.89,191.88,0.03]
[1755416002815,66.19985181,191.89,191.88,0.03]
[1755416003216,149.80621557,191.88,191.87,0.03]
[1755416003528,43.29799487,191.87,191.86,0.03]
[1755416003732,88.7029529,191.87,191.86,0.03]
[1755416003932,92.19423566,191.87,191.86,0.03]
[1755416004113,15.10621557,191.86,191.74,26.0]
[1755416004314,17.29799487,191.84,191.77,2.1917793]
[1755416004609,24.66494323,191.84,191.78,2.1917793]
[1755416004808,61.12494323,191.84,191.79,2.1917793]
[1755416005029,61.83494323,191.84,191.79,2.1917793]
[1755416005819,25.37494323,191.84,191.79,2.1917793]
[1755416006020,61.83494323,191.84,191.79,2.1917793]
[1755416006226,67.04762046,191.84,191.79,2.1917793]
[1755416006430,67.04762046,191.84,191.78,2.1917793]
[1755416007100,93.04762046,191.84,191.74,5.21539584]
[1755416007304,56.58762046,191.84,191.71,5.21621198]
[1755416007635,93.04762046,191.84,191.78,2.1917793]
[1755416008331,56.58762046,191.84,191.71,18.25674194]
[1755416008636,93.02762046,191.84,191.78,2.1917793]
[1755416009442,28.39584116,191.84,191.78,2.1917793]
[1755416009736,67.02762046,191.84,191.78,2.1917793]
[1755416009943,67.02762046,191.84,191.77,2.1917793]
[1755416010312,15.10621557,191.8,191.7,12.80093719]
[1755416010510,7.40763394,191.73,191.64,5.21785136]
[1755416010707,36.7,191.72,191.64,5.21785136]
[1755416010902,36.7,191.72,191.64,31.21785136]
[1755416011102,36.7,191.72,191.63,5.21838828]
[1755416011103,38.8917793,191.72,191.63,5.21838828]
[1755416011407,2.1917793,191.64,191.59,5.21947909]
[1755416011601,0.71,191.63,191.54,5.22084159]
[1755416011840,36.8,191.62,191.61,2.1917793]
[1755416012032,36.8,191.62,191.54,31.22084159]
[1755416012033,36.8,191.62,191.57,26.0]
[1755416012329,36.8,191.62,191.61,2.1917793]
[1755416012529,36.84,191.62,191.61,2.1917793]
[1755416012733,36.84,191.62,191.51,7.37885517]
[1755416012921,36.84,191.62,191.61,3.14688256]
[1755416013316,57.16488977,191.62,191.57,0.03]
[1755416013514,5.21799149,191.65,191.61,3.14688256]
[1755416013727,3.84772961,191.64,191.57,0.03]
[1755416013923,36.84,191.63,191.62,3.14688256]
[1755416014140,40.6880579,191.63,191.62,3.14688256]
[1755416014431,15.10621557,191.62,191.57,26.03]